bitfinex/quotes_SOLUSD_20241107
["timestamp","ask_amount","ask_price","bid_price","bid_amount"]
[1730967021154,7.86185769,188.46,188.4,7.86185769]
[1730967021560,7.86185769,188.46,188.37,15.7054]
[1730967021561,7.86185769,188.46,188.39,7.86185769]
[1730967022980,7.86185769,188.45,188.39,7.86185769]
[1730967023371,7.86185769,188.46,188.39,7.86185769]
[1730967023556,182.276884,188.51,188.41,7.86185769]
[1730967023557,7.86185769,188.47,188.41,7.86185769]
[1730967023762,182.176884,188.51,188.42,7.86185769]
[1730967023763,7.86185769,188.48,188.42,7.86185769]
[1730967024172,21.8156595,188.52,188.43,7.86185769]
[1730967024487,0.12549,188.5,188.44,7.86185769]
[1730967024669,7.86185769,188.51,188.45,7.86185769]
[1730967024875,7.86185769,188.51,188.4,31.44743076]
[1730967024876,7.86185769,188.51,188.44,7.86185769]
[1730967025889,7.86185769,188.5,188.44,7.86185769]
[1730967028172,7.86185769,188.49,188.43,7.86185769]
[1730967028381,7.86185769,188.49,188.38,20.0]
[1730967028568,7.86185769,188.49,188.42,7.86185769]
[1730967029088,7.86185769,188.48,188.41,7.86185769]
[1730967030188,7.86185769,188.46,188.38,20.0]
[1730967030385,7.86185769,188.46,188.39,7.86185769]
[1730967031064,0.12549,188.5,188.4,7.86185769]
[1730967031399,7.86185769,188.47,188.41,7.86185769]
[1730967034371,0.12549,188.5,188.4,7.86185769]
[1730967034372,7.86185769,188.46,188.4,7.86185769]
[1730967034898,7.86185769,188.47,188.41,7.86185769]
[1730967035694,7.86185769,188.46,188.39,7.86185769]
[1730967036696,7.86185769,188.45,188.38,7.86185769]
[1730967036889,7.86185769,188.45,188.39,7.86185769]
[1730967037092,7.86185769,188.43,188.33,21.3245139]
[1730967037285,7.86185769,188.43,188.35,7.86185769]
[1730967037286,7.86185769,188.41,188.35,7.86185769]
[1730967038075,7.86185769,188.41,188.32,22.0101]
[1730967038275,7.86185769,188.4,188.34,7.86185769]
[1730967038689,7.86185769,188.41,188.35,7.86185769]
[1730967039091,7.86185769,188.41,188.32,22.0101]
[1730967039291,7.86185769,188.41,188.35,7.86185769]
[1730967040100,16.1091,188.44,188.33,7.86185769]
[1730967040101,7.86185769,188.39,188.33,7.86185769]
[1730967040285,7.86185769,188.4,188.34,7.86185769]
[1730967041209,7.86185769,188.41,188.35,7.86185769]
[1730967041506,7.86185769,188.41,188.3,31.44743076]
[1730967041507,7.86185769,188.4,188.34,7.86185769]
[1730967041878,0.12549,188.43,188.36,7.86185769]
[1730967042078,0.12549,188.43,188.37,7.86185769]
[1730967042305,23.97095769,188.44,188.38,7.86185769]
[1730967042306,16.1091,188.44,188.38,7.86185769]
[1730967042489,16.1091,188.44,188.39,7.86185769]
[1730967042686,0.12549,188.44,188.39,7.86185769]
[1730967045697,7.86185769,188.46,188.39,7.86185769]
[1730967046005,7.86185769,188.48,188.41,7.86185769]
[1730967046186,7.86185769,188.48,188.42,7.86185769]
[1730967046383,0.12549,188.47,188.42,7.86185769]
[1730967046804,7.86185769,188.48,188.42,7.86185769]
[1730967047300,7.98734769,188.47,188.41,7.86185769]
[1730967047717,7.86185769,188.45,188.36,20.0]
[1730967048030,0.12549,188.44,188.39,7.86185769]
[1730967048222,7.86185769,188.43,188.35,6.3554]
[1730967048400,7.86185769,188.43,188.37,7.86185769]
[1730967049120,0.12549,188.43,188.38,7.86185769]
[1730967049425,0.12549,188.43,188.39,7.86185769]
[1730967049807,23.902374,188.44,188.39,7.86185769]
[1730967050122,23.902374,188.44,188.35,6.3554]
[1730967050123,0.12549,188.42,188.35,6.3554]
[1730967050332,7.86185769,188.42,188.35,7.86185769]
[1730967050697,7.86185769,188.42,188.36,7.86185769]
[1730967051117,7.86185769,188.42,188.34,15.8017]
[1730967051338,7.86185769,188.42,188.35,7.86185769]
[1730967051714,7.98734769,188.43,188.37,7.86185769]
[1730967052204,0.12549,188.43,188.39,7.86185769]
[1730967052528,0.12549,188.43,188.34,15.8017]
[1730967052709,0.12549,188.43,188.39,7.86185769]
[1730967053327,6.0758,188.46,188.42,7.86185769]
[1730967053625,158.5,188.51,188.42,7.86185769]
[1730967053626,0.12549,188.48,188.42,7.86185769]
[1730967054336,7.98734769,188.48,188.41,7.86185769]
[1730967054508,0.12549,188.46,188.41,7.86185769]
[1730967056210,0.12549,188.46,188.35,20.0]
[1730967056415,0.12549,188.46,188.41,7.86185769]
[1730967057329,31.76423169,188.44,188.34,15.8017]
[1730967057541,31.76423169,188.44,188.38,7.86185769]
[1730967058328,31.76423169,188.44,188.35,20.0]
[1730967058525,31.76423169,188.44,188.38,7.86185769]
[1730967058908,0.12549,188.42,188.36,7.86185769]
[1730967059109,7.98734769,188.4,188.34,7.86185769]
[1730967059320,23.776884,188.4,188.35,7.86185769]
[1730967059522,0.12549,188.39,188.35,7.86185769]
[1730967059709,23.776884,188.4,188.36,7.86185769]
[1730967060031,15.6799,188.42,188.38,7.86185769]
[1730967060229,0.12549,188.41,188.38,7.86185769]
[1730967061237,16.2882,188.46,188.4,7.86185769]
[1730967061434,16.2882,188.46,188.3,31.54743076]
[1730967061435,23.776884,188.45,188.41,7.86185769]
[1730967061631,0.12549,188.44,188.41,7.86185769]
[1730967061940,0.12549,188.44,188.4,7.86185769]
[1730967062322,0.12549,188.44,188.41,7.86185769]
[1730967063128,23.776884,188.45,188.42,7.86185769]
[1730967063445,11.95262838,188.49,188.43,7.86185769]
[1730967063446,19.81448607,188.49,188.43,7.86185769]
[1730967064328,0.12549,188.48,188.43,7.86185769]
[1730967064647,0.12549,188.48,188.42,7.86185769]
[1730967064648,31.63874169,188.48,188.42,7.86185769]
[1730967064820,0.12549,188.47,188.37,20.0]
[1730967065021,0.12549,188.47,188.42,7.86185769]
[1730967065238,0.12549,188.47,188.43,7.86185769]
[1730967065718,0.12549,188.47,188.37,20.0]
[1730967065916,0.12549,188.47,188.43,7.86185769]
[1730967066615,0.12549,188.47,188.44,7.86185769]
[1730967066822,23.29255769,188.51,188.37,20.0]
[1730967066823,15.4307,188.51,188.46,7.86185769]
[1730967067019,15.4307,188.51,188.4,31.44743076]
[1730967067248,15.4307,188.51,188.47,7.86185769]
[1730967067614,15.4307,188.51,188.46,7.86185769]
[1730967068018,0.12549,188.5,188.46,7.86185769]
[1730967068820,23.902374,188.5,188.46,7.86185769]
[1730967069846,31.76423169,188.5,188.37,20.0]
[1730967070049,23.902374,188.5,188.45,7.86185769]
[1730967070428,23.902374,188.5,188.46,7.86185769]
[1730967070833,23.902374,188.5,188.41,13.2689]
[1730967070834,23.902374,188.5,188.45,7.86185769]
[1730967071648,23.902374,188.5,188.46,5.3061]
[1730967073645,23.902374,188.5,188.46,18.5715]
[1730967073949,23.902374,188.48,188.44,5.3065]
[1730967076144,23.902374,188.48,188.44,18.5733]
[1730967077354,23.902374,188.49,188.44,18.5733]
[1730967077659,0.12549,188.44,188.38,13.2704]
[1730967077862,23.902374,188.42,188.38,13.2704]
[1730967078727,23.902374,188.42,188.38,18.5788]
[1730967079358,23.902374,188.42,188.4,7.86185769]
[1730967079562,23.902374,188.42,188.39,7.86185769]
[1730967080637,23.902374,188.42,188.4,5.3078]
[1730967081655,23.902374,188.42,188.4,7.86185769]
[1730967082937,23.902374,188.42,188.4,13.16955769]
[1730967083342,23.902374,188.42,188.41,7.86185769]
[1730967084760,23.902374,188.42,188.4,7.86185769]
[1730967085767,23.902374,188.42,188.41,7.86185769]
[1730967085981,23.902374,188.42,188.41,13.16935769]
[1730967086272,158.4,188.47,188.41,26.43825769]
[1730967086442,158.4,188.47,188.43,7.86185769]
[1730967086646,0.12549,188.47,188.43,7.86185769]
[1730967086854,19.67066649,188.48,188.42,7.86185769]
[1730967087056,24.97626649,188.48,188.42,7.86185769]
[1730967087767,0.12549,188.46,188.42,7.86185769]
[1730967087967,0.12549,188.46,188.41,7.86185769]
[1730967088882,0.12549,188.46,188.42,7.86185769]
[1730967089274,0.12549,188.46,188.42,13.16895769]
[1730967089978,0.12549,188.46,188.43,7.86185769]
[1730967091071,0.12549,188.46,188.42,7.86185769]
[1730967091874,0.12549,188.46,188.43,7.86185769]
[1730967093188,0.12549,188.46,188.44,7.86185769]
[1730967094265,0.12549,188.46,188.44,13.16845769]
[1730967094683,0.12549,188.46,188.43,13.2675]
[1730967094890,0.12549,188.46,188.42,7.86185769]
[1730967095183,0.12549,188.46,188.41,7.86185769]
[1730967095389,0.12549,188.46,188.37,32.9543]
[1730967095390,23.902374,188.44,188.39,7.86185769]
[1730967095771,0.12549,188.44,188.39,7.86185769]
[1730967096460,0.12549,188.44,188.4,7.86185769]
[1730967099497,0.12549,188.44,188.4,13.16955769]
[1730967101100,37.04524169,188.45,188.39,18.5783]
[1730967101310,0.12549,188.44,188.4,7.86185769]
[1730967102494,0.12549,188.44,188.41,7.86185769]
[1730967102674,0.12549,188.44,188.43,7.86185769]
[1730967102873,13.16735769,188.49,188.43,7.86185769]
[1730967103077,3.97484179,188.48,188.43,7.86185769]
[1730967103387,0.12549,188.47,188.43,7.86185769]
[1730967103592,0.12549,188.45,188.37,26.5422]
[1730967103928,0.12549,188.45,188.42,13.16905769]
[1730967104105,0.22549,188.47,188.42,13.16905769]
[1730967104399,24.002374,188.47,188.42,13.16905769]
[1730967104573,23.902374,188.47,188.42,26.43725769]
[1730967104771,23.776884,188.47,188.42,26.43725769]
[1730967105206,0.12549,188.46,188.42,26.43725769]
[1730967106681,0.12549,188.46,188.43,7.86185769]
[1730967107073,0.12549,188.46,188.42,7.86185769]
[1730967107602,7.98734769,188.46,188.37,26.5422]
[1730967107807,29.182984,188.47,188.41,7.86185769]
[1730967108111,0.12549,188.46,188.41,7.86185769]
[1730967109220,0.12549,188.44,188.4,26.43915769]
[1730967109398,0.12549,188.44,188.41,7.86185769]
[1730967109714,0.12549,188.44,188.42,7.86185769]
[1730967111010,0.12549,188.44,188.41,5.3074]
[1730967111219,0.12549,188.44,188.43,7.86185769]
[1730967111598,0.12549,188.44,188.42,7.86185769]
[1730967113604,0.12549,188.44,188.41,26.43815769]
[1730967114117,0.12549,188.44,188.42,7.86185769]
[1730967115595,0.12549,188.44,188.42,13.16905769]
[1730967116494,0.12549,188.44,188.42,7.86185769]
[1730967117104,0.12549,188.44,188.31,13.2759]
[1730967117105,0.1,188.37,188.31,13.2759]
[1730967117301,23.776884,188.35,188.3,7.86185769]
[1730967117498,23.776884,188.35,188.23,22.3828]
[1730967117499,23.776884,188.35,188.31,7.86185769]
[1730967117710,0.12549,188.34,188.31,7.86185769]
[1730967118815,0.12549,188.34,188.31,13.17205769]
[1730967119912,0.12549,188.34,188.27,13.2787]
[1730967120121,0.12549,188.34,188.31,7.86185769]
[1730967120490,5.5372364,188.36,188.33,7.86185769]
[1730967120892,0.12549,188.35,188.33,7.86185769]
[1730967122122,43.776884,188.4,188.34,7.86185769]
[1730967122302,0.12549,188.39,188.35,7.86185769]
[1730967122497,23.902374,188.37,188.35,7.86185769]
[1730967122721,15.6837,188.45,188.33,5.3097]
[1730967122920,0.1,188.48,188.44,7.86185769]
[1730967123220,163.9054,188.49,188.44,7.86185769]
[1730967123528,5.54004443,188.48,188.44,7.86185769]
[1730967123853,5.64004443,188.48,188.44,7.86185769]
[1730967124017,23.902374,188.47,188.44,7.86185769]
[1730967124218,24.002374,188.47,188.44,7.86185769]
[1730967124415,24.002374,188.47,188.43,7.86185769]
[1730967124619,24.002374,188.47,188.42,7.86185769]
[1730967124831,29.308274,188.47,188.42,7.86185769]
[1730967125042,23.902374,188.45,188.4,7.86185769]
[1730967125413,0.12549,188.45,188.4,7.86185769]
[1730967125628,24.002374,188.46,188.39,13.2702]
[1730967125819,24.002374,188.46,188.41,7.86185769]
[1730967126036,23.902374,188.46,188.41,7.86185769]
[1730967126219,23.902374,188.46,188.42,7.86185769]
[1730967126454,23.902374,188.46,188.43,7.86185769]
[1730967127238,0.12549,188.44,188.42,7.86185769]
[1730967127743,0.12549,188.44,188.39,13.2702]
[1730967127916,0.12549,188.44,188.42,7.86185769]
[1730967129035,5.54004443,188.48,188.43,7.86185769]
[1730967129247,0.12549,188.47,188.45,7.86185769]
[1730967130129,23.902374,188.47,188.45,7.86185769]
[1730967130929,29.308374,188.47,188.33,20.0]
[1730967131121,37.17023169,188.47,188.4,7.86185769]
[1730967131328,37.17023169,188.47,188.41,7.86185769]
[1730967131534,0.1,188.46,188.41,7.86185769]
[1730967132355,23.902374,188.45,188.41,7.86185769]
[1730967132845,23.902374,188.45,188.42,7.86185769]
[1730967133351,23.902374,188.45,188.42,12.29010427]
[1730967133728,23.902374,188.45,188.41,12.29010427]
[1730967134249,23.902374,188.45,188.42,12.29010427]
[1730967134952,23.902374,188.44,188.4,12.29010427]
[1730967135361,23.902374,188.44,188.41,12.29010427]
[1730967135853,23.902374,188.42,188.33,20.0]
[1730967136147,23.902374,188.42,188.32,6.5256]
[1730967136148,24.002374,188.42,188.37,12.29010427]
[1730967136323,23.902374,188.42,188.4,12.29010427]
[1730967136529,23.902374,188.42,188.38,12.29010427]
[1730967136727,24.002374,188.42,188.38,12.29010427]
[1730967136943,24.002374,188.42,188.37,12.29010427]
[1730967137457,0.12549,188.4,188.34,5.3095]
[1730967137752,23.902374,188.4,188.36,12.29010427]
[1730967139231,23.902374,188.4,188.37,12.29010427]
[1730967144343,158.4,188.42,188.39,12.29010427]
[1730967144547,5.5366745,188.44,188.41,12.29010427]
[1730967144865,5.5366745,188.44,188.37,5.3086]
[1730967144866,0.12549,188.43,188.42,12.29010427]
[1730967145042,158.4,188.47,188.42,12.29010427]
[1730967145243,5.53582749,188.45,188.44,12.29010427]
[1730967145446,0.12549,188.44,188.43,12.29010427]
[1730967145839,0.12549,188.44,188.42,12.29010427]
[1730967146148,5.53582749,188.45,188.42,12.29010427]
[1730967146349,5.53582749,188.45,188.43,12.29010427]
[1730967146831,0.12549,188.44,188.43,12.29010427]
[1730967148563,0.12549,188.47,188.43,12.29010427]
[1730967148865,23.902374,188.47,188.43,12.29010427]
[1730967150445,23.902374,188.47,188.42,12.29010427]
[1730967150662,29.208274,188.47,188.42,12.29010427]
[1730967152881,23.902374,188.47,188.43,12.29010427]
[1730967153455,23.902374,188.47,188.42,7.86422058]
[1730967154776,29.208174,188.47,188.42,7.86422058]
[1730967155183,29.208174,188.47,188.43,7.86422058]
[1730967156651,23.902374,188.47,188.44,7.86422058]
[1730967156851,29.208374,188.47,188.43,7.86422058]
[1730967157482,29.208374,188.47,188.42,7.86422058]
[1730967158174,23.902374,188.47,188.44,7.86422058]
[1730967158552,23.902374,188.47,188.43,7.86422058]
[1730967159374,23.902374,188.47,188.44,7.86422058]
[1730967159751,23.902374,188.47,188.43,7.86422058]
[1730967160552,29.208274,188.47,188.42,7.86422058]
[1730967160791,29.208274,188.47,188.41,7.86422058]
[1730967162458,29.208274,188.47,188.42,7.86422058]
[1730967163379,29.208274,188.47,188.43,7.86422058]
[1730967164579,29.208274,188.47,188.42,7.86422058]
[1730967165588,23.902374,188.42,188.34,16.0689]
[1730967165883,23.902374,188.4,188.34,23.93312058]
[1730967166086,23.902374,188.4,188.34,7.86422058]
[1730967166663,23.902374,188.4,188.34,13.17372058]
[1730967167003,23.902374,188.4,188.35,7.86422058]
[1730967168058,23.902374,188.4,188.35,13.17342058]
[1730967168380,23.776884,188.44,188.38,7.86422058]
[1730967168556,23.776884,188.44,188.39,7.86422058]
[1730967168759,23.776884,188.44,188.35,5.3092]
[1730967168760,0.12549,188.43,188.38,7.86422058]
[1730967169882,0.12549,188.43,188.37,5.3084]
[1730967169883,0.12549,188.43,188.39,7.86422058]
[1730967170088,0.12549,188.43,188.4,7.86422058]
[1730967170587,0.12549,188.43,188.41,7.86422058]
[1730967171157,5.52766851,188.46,188.41,13.17172058]
[1730967171365,5.52766851,188.46,188.42,7.86422058]
[1730967171588,0.12549,188.45,188.42,7.86422058]
[1730967172362,5.52766851,188.46,188.44,7.86422058]
[1730967172578,15.6837,188.5,188.44,7.86422058]
[1730967172791,3.96826919,188.49,188.44,7.86422058]
[1730967172966,4.09375919,188.48,188.44,7.86422058]
[1730967173168,0.12549,188.46,188.44,7.86422058]
[1730967173485,34.38501648,188.5,188.44,7.86422058]
[1730967173689,3.9681091,188.49,188.46,7.86422058]
[1730967173875,5.5320959,188.5,188.47,7.86422058]
[1730967174074,0.12549,188.48,188.47,7.86422058]
[1730967174969,23.902374,188.49,188.46,7.86422058]
[1730967175169,23.902374,188.49,188.44,5.3064]
[1730967175387,23.902374,188.49,188.44,7.86422058]
[1730967175572,0.12549,188.49,188.45,7.86422058]
[1730967175772,0.12549,188.49,188.44,7.86422058]
[1730967175971,0.12549,188.49,188.45,7.86422058]
[1730967176579,0.12549,188.49,188.44,7.86422058]
[1730967176894,23.902374,188.49,188.44,7.86422058]
[1730967177693,23.902374,188.49,188.45,7.86422058]
[1730967177995,23.902374,188.49,188.46,7.86422058]
[1730967179013,23.902374,188.49,188.45,7.86422058]
[1730967179578,23.902374,188.49,188.46,7.86422058]
[1730967179790,5.5320959,188.5,188.48,7.86422058]
[1730967179998,3.96819538,188.49,188.48,7.86422058]
[1730967180198,3.96819538,188.49,188.47,7.86422058]
[1730967180488,5.5320959,188.5,188.47,7.86422058]
[1730967180690,3.96817464,188.49,188.47,7.86422058]
[1730967180993,5.5320959,188.5,188.47,7.86422058]
[1730967181177,3.96817521,188.49,188.48,7.86422058]
[1730967181587,5.5320959,188.5,188.48,7.86422058]
[1730967181999,0.12549,188.49,188.46,7.86422058]
[1730967182174,41.03992861,188.49,188.43,7.86422058]
[1730967182375,37.07189458,188.49,188.43,7.86422058]
[1730967183593,29.207674,188.49,188.44,7.86422058]
[1730967185578,29.207674,188.49,188.44,13.17092058]
[1730967187275,29.207674,188.49,188.44,7.86422058]
[1730967187594,29.207674,188.49,188.41,13.2689]
[1730967187595,37.07189458,188.49,188.41,13.2689]
[1730967187796,23.902374,188.47,188.43,7.86422058]
[1730967188687,23.902374,188.47,188.42,7.86422058]
[1730967188997,29.208274,188.47,188.42,7.86422058]
[1730967192402,29.208274,188.47,188.42,13.17142058]
[1730967192572,23.776884,188.48,188.43,7.86422058]
[1730967193398,163.7042,188.53,188.47,7.86422058]
[1730967193573,3.9687863,188.52,188.48,7.86422058]
[1730967193785,4.0942763,188.51,188.48,7.86422058]
[1730967194084,4.0942763,188.51,188.47,7.86422058]
[1730967194085,0.12549,188.51,188.47,7.86422058]
[1730967194289,0.12549,188.52,188.47,7.86422058]
[1730967194486,0.12549,188.5,188.47,7.86422058]
[1730967194804,23.776884,188.52,188.46,13.17032058]
[1730967194973,0.12549,188.5,188.46,13.17032058]
[1730967195373,5.65239955,188.5,188.46,13.17032058]
[1730967197000,5.65239955,188.5,188.48,7.86422058]
[1730967204105,5.65239955,188.5,188.47,7.86422058]
[1730967204310,5.65239955,188.5,188.47,13.17002058]
[1730967206208,5.65239955,188.5,188.48,7.86422058]
[1730967206416,5.52690955,188.5,188.49,7.86422058]
[1730967206710,5.3033,188.56,188.49,7.86422058]
[1730967206881,13.39058639,188.57,188.51,7.86422058]
[1730967207085,3.96306009,188.56,188.51,7.86422058]
[1730967207282,13.39058639,188.57,188.51,7.86422058]
[1730967207508,10.82956581,188.57,188.52,7.86422058]
[1730967207715,0.12549,188.55,188.52,7.86422058]
[1730967208687,10.82956581,188.57,188.51,5.3046]
[1730967208688,5.42879,188.56,188.51,13.16882058]
[1730967209095,0.12549,188.54,188.47,6.468]
[1730967209293,0.12549,188.54,188.5,7.86422058]
[1730967210195,5.42949,188.54,188.48,13.16982058]
[1730967210398,0.12549,188.52,188.48,13.16982058]
[1730967211089,0.12549,188.52,188.5,7.86422058]
[1730967211290,0.12549,188.52,188.48,7.86422058]
[1730967214515,0.12549,188.52,188.48,13.16972058]
[1730967214902,23.776884,188.55,188.5,7.86422058]
[1730967215212,5.52636581,188.57,188.52,7.86422058]
[1730967215717,13.39058639,188.57,188.48,5.3055]
[1730967215898,0.12549,188.56,188.51,7.86422058]
[1730967216213,0.12549,188.56,188.52,7.86422058]
[1730967216414,5.52636581,188.57,188.52,7.86422058]
[1730967216716,23.776884,188.56,188.51,7.86422058]
[1730967216895,23.776884,188.56,188.51,13.16872058]
[1730967217217,0.12549,188.55,188.51,13.16872058]
[1730967218200,0.12549,188.55,188.52,7.86422058]
[1730967218720,0.12549,188.55,188.51,7.86422058]
[1730967220122,0.12549,188.55,188.51,13.16882058]
[1730967220900,0.12549,188.55,188.51,5.3046]
[1730967221113,0.12549,188.55,188.5,7.86422058]
[1730967221313,0.12549,188.55,188.51,7.86422058]
[1730967222319,0.12549,188.55,188.51,13.16872058]
[1730967223515,0.12549,188.55,188.5,7.86422058]
[1730967224517,13.29331058,188.55,188.5,5.3048]
[1730967224923,5.42909,188.55,188.5,5.3048]
[1730967225124,0.12549,188.55,188.5,5.3048]
[1730967226013,0.12549,188.55,188.5,13.16902058]
[1730967226307,5.52636581,188.57,188.52,7.86422058]
[1730967226728,5.52636581,188.57,188.51,7.86422058]
[1730967226929,0.12549,188.56,188.51,7.86422058]
[1730967227418,7.98971058,188.56,188.5,5.3048]
[1730967227620,0.12549,188.54,188.5,13.16902058]
[1730967228318,0.12549,188.54,188.5,7.86422058]
[1730967229210,0.12549,188.54,188.49,7.86422058]
[1730967229712,0.12549,188.54,188.5,5.305]
[1730967230523,0.12549,188.54,188.44,15.9765]
[1730967230722,0.12549,188.52,188.47,7.86422058]
[1730967231227,0.12549,188.52,188.48,7.86422058]
[1730967233329,10.82839271,188.55,188.48,5.3055]
[1730967233632,5.52479271,188.55,188.53,7.86422058]
[1730967233840,0.12549,188.54,188.51,7.86422058]
[1730967234328,0.12549,188.54,188.5,7.86422058]
[1730967234834,23.902374,188.54,188.5,7.86422058]
[1730967235635,23.902374,188.54,188.5,13.16912058]
[1730967238420,23.902374,188.54,188.44,15.9765]
[1730967238421,23.902374,188.54,188.49,7.86422058]
[1730967238621,29.206274,188.54,188.45,5.3064]
[1730967238835,29.206274,188.54,188.48,7.86422058]
[1730967239139,29.206274,188.54,188.45,5.3064]
[1730967239140,29.206274,188.54,188.49,7.86422058]
[1730967240317,29.206274,188.54,188.48,7.86422058]
[1730967240520,23.902374,188.52,188.44,15.9765]
[1730967240934,23.902374,188.52,188.47,7.86422058]
[1730967242231,0.12549,188.48,188.45,5.3064]
[1730967242944,0.12549,188.48,188.44,7.86422058]
[1730967243235,0.12549,188.48,188.44,13.17072058]
[1730967243421,0.12549,188.48,188.39,22.792]
[1730967243422,7.98971058,188.48,188.39,22.792]
[1730967243623,23.902374,188.46,188.41,7.86422058]
[1730967244039,23.902374,188.46,188.42,7.86422058]
[1730967244335,23.902374,188.47,188.42,7.86422058]
[1730967244712,23.902374,188.45,188.39,6.1857]
[1730967245146,23.776884,188.5,188.44,7.86422058]
[1730967245318,23.776884,188.5,188.45,7.86422058]
[1730967245719,0.12549,188.49,188.45,7.86422058]
[1730967245933,0.12549,188.49,188.45,13.17052058]
[1730967249439,0.12549,188.49,188.44,7.86422058]
[1730967251349,0.12549,188.49,188.45,5.3064]
[1730967251840,0.12549,188.49,188.45,13.17062058]
[1730967252347,0.12549,188.49,188.46,7.86422058]
[1730967252531,23.776884,188.51,188.48,7.86422058]
[1730967252735,0.12549,188.5,188.47,7.86422058]
[1730967253548,0.12549,188.51,188.47,13.16992058]
[1730967254351,23.902374,188.51,188.47,13.16992058]
[1730967254842,23.902374,188.51,188.46,7.86422058]
[1730967255948,23.902374,188.51,188.46,13.17012058]
[1730967256747,23.902374,188.51,188.47,7.86422058]
[1730967258149,23.902374,188.51,188.47,13.17002058]
[1730967259447,0.12549,188.51,188.48,7.86422058]
[1730967260733,0.12549,188.51,188.48,13.16952058]
[1730967261746,0.12549,188.51,188.48,5.3053]
[1730967262628,23.902374,188.51,188.46,7.86422058]
[1730967262829,29.207174,188.51,188.45,7.86422058]
[1730967263144,37.07139458,188.51,188.45,7.86422058]
[1730967264231,37.07139458,188.51,188.48,0.5612]
[1730967264729,23.902374,188.49,188.48,0.5612]
[1730967266854,37.07189458,188.49,188.48,0.5612]
[1730967275771,195.47189458,188.49,188.48,0.5612]
[1730967278777,158.4,188.49,188.48,0.5612]
[1730967279176,158.52549,188.49,188.48,0.5612]
[1730967280082,182.302374,188.49,188.48,0.5612]
[1730967280263,158.52549,188.49,188.48,0.5612]
[1730967280654,5.51771836,188.5,188.48,13.73102058]
[1730967280856,0.12549,188.49,188.48,13.73102058]
[1730967283271,0.12549,188.49,188.48,13.16982058]
[1730967284177,0.12549,188.49,188.47,7.86422058]
[1730967284574,5.51771836,188.5,188.48,7.86422058]
[1730967284869,7.86422058,188.57,188.49,7.86422058]
[1730967285053,7.86422058,188.57,188.46,5.3061]
[1730967285054,0.12549,188.52,188.51,7.86422058]
[1730967286156,0.12549,188.52,188.51,13.16892058]
[1730967287977,0.12549,188.52,188.5,7.86422058]
[1730967288869,0.12549,188.52,188.51,7.86422058]
[1730967289583,5.51253507,188.53,188.5,13.16912058]
[1730967289887,5.51253507,188.53,188.51,7.86422058]
[1730967290660,5.51253507,188.53,188.51,13.16882058]
[1730967291274,5.51253507,188.53,188.52,7.86422058]
[1730967291468,31.64110458,188.59,188.52,7.86422058]
[1730967291667,0.12549,188.56,188.53,7.86422058]
[1730967292478,0.12549,188.56,188.52,7.86422058]
[1730967293569,0.12549,188.56,188.52,13.16842058]
[1730967294979,0.12549,188.56,188.5,13.16922058]
[1730967295162,0.12549,188.54,188.5,5.305]
[1730967295753,0.12549,188.52,188.48,7.86422058]
[1730967296780,0.12549,188.52,188.48,13.16972058]
[1730967298790,0.12549,188.52,188.48,5.3055]
[1730967301192,0.12549,188.52,188.48,7.86422058]
[1730967303185,0.12549,188.52,188.49,7.86422058]
[1730967304698,0.12549,188.52,188.49,13.16952058]
[1730967305089,0.12549,188.52,188.5,7.86422058]
[1730967305291,5.50665328,188.54,188.51,7.86422058]
[1730967305497,158.4,188.57,188.49,5.3053]
[1730967305498,158.4,188.57,188.53,7.86422058]
[1730967305796,0.12549,188.56,188.53,7.86422058]
[1730967305980,5.50688468,188.57,188.53,7.86422058]
[1730967306987,0.12549,188.56,188.53,13.16822058]
[1730967307192,23.902374,188.56,188.53,13.16822058]
[1730967308602,23.902374,188.56,188.54,7.86422058]
[1730967309303,163.90688468,188.57,188.53,5.304]
[1730967309304,163.90688468,188.57,188.55,7.86422058]
[1730967309483,163.90688468,188.57,188.53,5.304]
[1730967309484,158.4,188.58,188.56,7.86422058]
[1730967309695,158.4,188.58,188.57,7.86422058]
[1730967309886,0.12549,188.58,188.57,7.86422058]
[1730967313181,0.12549,188.58,188.56,7.86422058]
[1730967313389,158.4,188.61,188.57,7.86422058]
[1730967313599,158.4,188.6,188.58,7.86422058]
[1730967313802,13.16552058,188.64,188.58,7.86422058]
[1730967314005,23.902374,188.62,188.58,7.86422058]
[1730967315484,0.12549,188.6,188.58,7.86422058]